Cogmind - Beta 15 @@@ ROGUE MODE // 2025.10.04 @ 18:17:45 Player: Runagate Result: Destroyed by G-67 Veteran with Field Laser Performance ------------- Evolutions (7) 3500 Regions Visited (15) 3000 Robots Destroyed (273) 1365 Value Destroyed (12156) 12156 Prototype IDs (35) 700 Alien Tech Used (0) 0 Bonus (5391) 5391 TOTAL SCORE: 26112 Bonus ------- Triggered Max Security 1000 High Alert Combat Kills 2231 Follower Combat Kills 219 Aligned with FarCom 300 Acquired SGEMP 2000 Friendly Fire -359 Cogmind --------- Core Integrity 0/1300 Matter 231/300 Energy 92/100 System Corruption 31% Temperature Cool (55) Movement Core (50) Location -3/Testing Parts ------- > --- POWER (2) -------- (None) > --- PROPULSION (6) --- (None) > --- UTILITY (8) ------ (None) > --- WEAPON (5) ------- (None) > --- INVENTORY (5) ---- Improved Ion Engine Improved Heavy Treads Matter Compressor (0) Phase Gun Peak State ------------ > --- POWER ------------ F-cell Engine Antimatter Reactor > --- PROPULSION ------- Advanced Medium Treads Improved Heavy Treads Improved Heavy Treads Biometal Medium Treads > --- UTILITY ---------- Advanced Heat Sink Advanced Heat Sink Advanced Heat Sink Coolant Network Huge Storage Unit Advanced Targeting Computer Core Analyzer > --- WEAPON ----------- Quantum Rifle Compact HERF Cannon Nova Cannon Mini Assault Cannon Hardcell Cannon > --- INVENTORY -------- F-cell Engine Neutrino Core Improved Heavy Treads Advanced Cryofiber Web Advanced Heat Sink Advanced Heat Sink Compact Battery High-capacity Matter Pod Matter Compressor Phase Gun Phase Gun Long-range Proton Cannon KE Penetrator Railgun Advanced Assault Cannon Gauss Cannon Heavy Missile Launcher PL-3XN's Ring of Power [Rating: 143] Favorites ----------- Power F-cell Engine Engine F-cell Engine Power Core Neutrino Core Reactor Antimatter Reactor Propulsion Light Treads Treads Light Treads Flight Unit Impulse Thruster Array Utility Advanced Targeting Computer Device Advanced Heat Sink Storage High-capacity Storage Unit Processor Advanced Targeting Computer Protection Hardened Medium Armor Plating Weapon Magnetic Acceleration Cannon Energy Gun Wave Gun Energy Cannon Plasma Cannon Ballistic Gun Improved Heavy Machine Gun Ballistic Cannon Magnetic Acceleration Cannon Launcher Heavy Missile Launcher Build | -11 -10 -10 -10 -9 -8 -7 -6 -5 -5 -5 -4 -4 -4 -3 -3 ------- Run | Yrd Mat Min Exi Min Mat Fac Fac Fac Upp Upp Fac Upp Upp Res Tes Slots Evolved 14 | . . . . . 4 2 2 2 . . 2 . . 2 . Power 1 | . . . . . . . 1 . . . . . . . . Propulsion 4 | . . . . . 1 1 . 1 . . 1 . . . . Utility 6 | . . . . . 1 1 1 1 . . 1 . . 1 . Weapon 3 | . . . . . 2 . . . . . . . . 1 . Parts Attached 149 | 9 11 7 1 . 10 14 15 12 . . 9 7 1 41 12 Power 16 | 1 2 1 . . . 2 2 1 . . 1 3 . 3 . Engine 8 | 1 2 1 . . . 1 2 . . . . . . 1 . Core 4 | . . . . . . 1 . 1 . . . 2 . . . Reactor 4 | . . . . . . . . . . . 1 1 . 2 . Propulsion 32 | 2 1 2 . . 4 4 4 3 . . 4 . . 6 2 Treads 30 | 2 1 2 . . 4 4 4 3 . . 4 . . 6 . Leg . | . . . . . . . . . . . . . . . . Wheel . | . . . . . . . . . . . . . . . . Hover . | . . . . . . . . . . . . . . . . Flight 2 | . . . . . . . . . . . . . . . 2 Utility 55 | 3 2 3 . . 5 4 6 4 . . 3 3 1 16 5 Device 33 | 2 1 2 . . 2 2 3 3 . . 1 3 1 10 3 Storage 8 | 1 1 1 . . 2 . . . . . 1 . . . 2 Processor 5 | . . . . . 1 . 1 1 . . . . . 2 . Hackware . | . . . . . . . . . . . . . . . . Protection 9 | . . . . . . 2 2 . . . 1 . . 4 . Artifact . | . . . . . . . . . . . . . . . . Weapon 46 | 3 6 1 1 . 1 4 3 4 . . 1 1 . 16 5 Energy Gun 16 | 2 2 . . . . 1 . 1 . . . . . 9 1 Energy Cannon 6 | . . . . . . . 1 1 . . 1 . . 3 . Ballistic Gun 11 | 1 4 . 1 . 1 2 1 . . . . . . . 1 Ballistic Cannon 12 | . . 1 . . . 1 1 2 . . . 1 . 4 2 Launcher 1 | . . . . . . . . . . . . . . . 1 Special Weapon . | . . . . . . . . . . . . . . . . Impact Weapon . | . . . . . . . . . . . . . . . . Slashing Weapon . | . . . . . . . . . . . . . . . . Piercing Weapon . | . . . . . . . . . . . . . . . . Special Melee Weapon . | . . . . . . . . . . . . . . . . Unidentified Prototypes 7 | . . . . . . 2 1 1 . . . . . 1 2 Corrupted Parts 1 | . . . . . . . . . . . . . . . 1 System Corruption 8 | . . . . . . . . . . . . . . . 8 Parts Lost 48 | . . 1 . . . 2 2 1 . . 1 2 . 22 17 Power 4 | . . . . . . . . . . . . 1 . 1 2 Propulsion 10 | . . . . . . . . . . . . . . 4 6 Utility 21 | . . 1 . . . 2 2 1 . . 1 1 . 10 3 Weapon 13 | . . . . . . . . . . . . . . 7 6 Highest Loss Streak 11 | . . 1 . . . 1 1 1 . . 1 1 . 4 11 To Critical Strikes 1 | . . . . . . . . . . . . . . . 1 Average Backups 16 | 1 8 10 8 7 9 17 18 18 19 19 17 18 21 19 15 Power 1 | . 1 1 1 1 1 1 1 2 2 2 2 3 3 2 2 Propulsion 2 | . . 2 1 1 . 3 3 3 3 3 2 3 3 2 1 Utility 5 | . 3 4 4 4 5 6 5 4 4 5 3 3 5 6 2 Weapon 6 | . 2 3 2 1 2 5 7 8 9 9 8 9 10 8 9 Tool/Special . | . . . . . . . . . . . . . . . . Unused Backups 32 | . . 2 1 . 3 9 5 1 . . . . 1 5 5 Power 4 | . . . . . 2 1 . . . . . . . . 1 Propulsion 3 | . . . . . . 1 2 . . . . . . . . Utility 11 | . . 2 . . 1 3 2 1 . . . . . 1 1 Weapon 14 | . . . 1 . . 4 1 . . . . . 1 4 3 Tool/Special . | . . . . . . . . . . . . . . . . Average Slot Usage (%) 89 | . 99 99 100 100 71 81 98 99 100 100 97 82 84 77 74 Engine 6 | . 14 14 14 14 9 5 12 7 5 5 1 . . 3 3 Core 1 | . . . . . . 1 . 3 5 5 5 6 10 . 1 Reactor 1 | . . . . . . . . . . . 3 3 . 3 2 Treads 23 | . 27 28 28 28 27 29 25 29 29 29 29 15 15 14 10 Device 13 | . 14 13 14 14 8 13 13 10 11 11 14 13 15 14 22 Storage 7 | . 14 14 14 14 9 7 6 5 5 5 5 5 5 4 9 Processor 6 | . . . . . 8 7 4 10 11 11 10 10 10 6 . Protection 3 | . . . . . . 1 7 5 5 5 4 5 5 3 . Energy Gun 3 | . 12 . . . . 1 3 4 5 5 3 . . 6 6 Energy Cannon 3 | . . . . . . . 1 1 5 5 6 5 5 6 4 Ballistic Gun 6 | . 15 18 14 14 9 9 13 8 . . . . . . . Ballistic Cannon 7 | . . 9 14 14 . 1 6 6 11 11 10 14 15 9 6 Peak Build Rating 143 | 7 8 17 20 20 59 71 71 82 76 76 111 114 112 143 137 Average Rating 74 | 6 7 13 18 20 54 62 67 76 75 76 85 110 112 125 112 On Entrance 57 | . 7 8 17 20 20 59 54 68 76 76 76 111 112 112 97 Naked Turns 4 | . . . . . . . . . . . . . . . 4 Heaviest Build 165 | 13 20 29 29 29 65 85 102 111 107 107 148 149 143 165 152 Greatest Support 225 | 40 40 40 40 40 69 97 101 128 120 120 225 225 225 225 184 Greatest Overweight (x) 6 | . . . . . . . 1 . . . . . . 1 6 Average Overweight (x) . | . . . . . . . . . . . . . . . . Largest Inventory Capacity 25 | 8 10 10 10 10 20 20 20 20 20 20 25 25 25 25 25 Average Capacity 19 | 7 9 10 10 10 11 20 20 20 20 20 20 25 25 25 24 Most Carried 25 | 3 10 10 10 10 13 20 20 20 20 20 21 25 25 25 23 Average Carried 17 | 1 8 10 9 10 9 17 19 19 19 20 19 22 25 22 17 Final Capacity 25 | 8 10 10 10 10 20 20 20 20 20 20 25 25 25 25 5 Final Carried 25 | 3 10 10 10 10 13 20 20 20 20 20 21 25 25 23 5 Class Distribution -------------------- 30% | Tank 18% | Mutant 18% | Scavenger-Gunner 14% | Gunner 7% | Scavenger-Tank 6% | Skirmisher 3% | Scavenger-Skirmisher Dominant Class ---------------- Mutant | -10/Materials Mutant | -10/Mines Mutant | -10/Exiles Mutant | -9/Mines Skirmisher | -8/Materials Gunner | -7/Factory Tank | -6/Factory Gunner | -5/Factory Scavenger-Gunner | -5/Upper Caves Scavenger-Gunner | -5/Upper Caves Scavenger-Gunner | -4/Factory Tank | -4/Upper Caves Scavenger-Tank | -4/Upper Caves Tank | -3/Research Scavenger-Skirmisher | -3/Testing Resources | -11 -10 -10 -10 -9 -8 -7 -6 -5 -5 -5 -4 -4 -4 -3 -3 ----------- Run | Yrd Mat Min Exi Min Mat Fac Fac Fac Upp Upp Fac Upp Upp Res Tes Matter Collected 10604 | 317 393 229 . 50 891 1917 1198 653 405 40 321 993 187 2324 686 Remotely . | . . . . . . . . . . . . . . . . Salvage Created 11704 | 219 479 133 . 31 1214 1994 798 448 248 143 156 720 210 4526 385 Parts 574 | 14 31 6 . 1 57 134 48 24 12 . 14 28 11 182 12 Haulers Intercepted 4 | . 2 . . . 1 1 . . . . . . . . . Recyclers Shooed 18 | . 3 . . . . 3 3 . . . . . . 9 . Parts Field Recycled . | . . . . . . . . . . . . . . . . Retrieved Matter . | . . . . . . . . . . . . . . . . Parts Self-Destructed 39 | . . . . . . . . . 9 . . 19 11 . . Prevented 2 | . . . . . . . . . 2 . . . . . . Kills | -11 -10 -10 -10 -9 -8 -7 -6 -5 -5 -5 -4 -4 -4 -3 -3 ------- Run | Yrd Mat Min Exi Min Mat Fac Fac Fac Upp Upp Fac Upp Upp Res Tes Combat Hostiles Destroyed 201 | . 10 3 . 1 21 36 18 8 2 . 7 21 4 62 8 Guns 99 | . 10 1 . . 21 32 10 5 1 . 2 . . 14 3 Cannons 94 | . . 2 . 1 . 4 6 3 1 . 4 21 4 45 3 AOE 4 | . . . . . . . 2 . . . 1 . . . 1 Classes Destroyed 23 | 2 4 . . . 3 7 1 . 1 . . 1 . 2 2 Worker 21 | . 2 . . . . 6 . . . . 1 . . 12 . Builder 14 | . . . . . 2 3 1 2 . . 1 . . 5 . Tunneler 8 | 8 . . . . . . . . . . . . . . . Hauler 4 | . 2 . . . 1 1 . . . . . . . . . Recycler 11 | 1 1 . . . . 4 . . . . . . . 5 . Mechanic 2 | . . . . . . 1 1 . . . . . . . . Operator 2 | . . . . . . 1 . . . . . . . 1 . Watcher 7 | . . . . . 2 . . 1 . . . . . 4 . Swarmer 33 | . 5 1 . . . 3 3 . . . 7 9 . 5 . Saboteur 2 | . . . . . . . . . . . . . . 1 1 Grunt 75 | . 5 2 . 1 16 11 6 2 . . . 4 4 20 4 Brawler 5 | . . . . . . . 1 . . . . . . 4 . Duelist 2 | . . . . . . . . . . . . . . 2 . Protector 2 | . . . . . . 2 . . . . . . . . . Sentry 19 | . . . . . 5 2 5 3 . . . 1 . 3 . Specialist 4 | . . . . . . 4 . . . . . . . . . Hunter 16 | . . . . . . 4 . . 2 . . . . 10 . Programmer 29 | . . . . . . 7 3 2 . . . . . 17 . Heavy 4 | . . . . . . 3 . 1 . . . . . . . Striker 2 | . . . . . . . . . . . . . . . 2 Alpha 7 1 | . . . . . . . . . . . . . . . 1 Decomposer 2 | . . . . . . . . . 1 1 . . . . . Samaritan 4 | . . . . . . . . . 2 2 . . . . . Thug 8 | . . 1 . . . . . . . . . 6 . 1 . Savage 1 | . . . . . . . . . 1 . . . . . . Mutant 1 | . . . . . . . . . . . . 1 . . . Best Kill Streak 12 | 4 2 2 . 1 4 12 5 5 1 . 4 9 4 12 3 Combat Bots Only 9 | . 2 2 . 1 3 9 4 2 1 . 4 9 4 9 3 Max Kills in Single Turn 4 | 1 1 1 . 1 1 2 3 2 1 1 1 2 2 4 1 Gunslinging . | . . . . . . . . . . . . . . . . Exploded 2 | . . . . . . . 2 . . . 1 . . . 1 Melee . | . . . . . . . . . . . . . . . . Uniques/NPCs Destroyed . | . . . . . . . . . . . . . . . . Combat | -11 -10 -10 -10 -9 -8 -7 -6 -5 -5 -5 -4 -4 -4 -3 -3 -------- Run | Yrd Mat Min Exi Min Mat Fac Fac Fac Upp Upp Fac Upp Upp Res Tes Hostile Shots Fired 1296 | . 66 22 . 5 18 157 146 68 20 . 24 120 17 400 233 Missed 383 | . 17 3 . 1 7 63 52 16 3 . 5 29 . 107 80 Hits 913 | . 49 19 . 4 11 94 94 52 17 . 19 91 17 293 153 Melee 9 | . . . . . . . . . . . . . . 6 3 Projectile 904 | . 49 19 . 4 11 94 94 52 17 . 19 91 17 287 150 Critical Strikes 47 | . 1 . . 1 1 1 1 3 2 . 1 6 1 12 17 Part Disruptions 2 | . . . . . . . . . . . . . . . 2 Damage Taken 15953 | . 443 247 . 59 164 1351 651 1160 155 . 274 1679 337 6257 3176 Core 1844 | . 117 10 . . 17 130 46 117 . . 16 76 . 380 935 Absorbed by Shields 887 | . . . . . . . 274 393 58 . 101 61 . . . Reduced by Siege Mode 821 | . . . . . . . . . . . . 243 76 502 . Regen/Repaired (Parts) 368 | . 119 . . . . . 249 . . . . . . . . Core Remaining (%) 85 | 100 . . . 49 96 81 94 . . 88 . . 92 . . Volleys Fired 547 | 27 46 13 . 3 42 91 47 32 9 1 20 38 6 137 35 Largest 5 | 2 2 2 . 2 1 4 4 4 4 4 4 4 4 5 5 Hottest 405 | 60 60 60 . 60 60 139 149 215 245 245 245 208 208 381 405 Shots Fired 1745 | 54 91 28 . 6 42 155 188 122 36 4 78 146 24 650 121 Gun 852 | 54 91 21 . 3 42 133 136 65 9 1 10 . . 230 57 Cannon 890 | . . 7 . 3 . 22 52 57 27 3 68 146 24 420 61 Launcher 3 | . . . . . . . . . . . . . . . 3 Special . | . . . . . . . . . . . . . . . . Kinetic 1055 | 27 49 28 . 6 42 135 148 81 18 2 40 108 18 289 64 Thermal 617 | 27 42 . . . . 20 35 27 18 2 30 38 6 329 43 Explosive 3 | . . . . . . . . . . . . . . . 3 Electromagnetic 70 | . . . . . . . 5 14 . . 8 . . 32 11 Robot Hit Streak 38 | 7 16 10 . 2 13 19 18 19 6 7 4 22 12 38 10 Robot Miss Streak 8 | 2 5 4 . 2 6 4 3 4 2 . 2 3 1 4 8 Penetration Max 2 | . . . . . . . . . . . . . . . 2 Secondary Targets 1 | . 1 . . . . . . . . . . . . . . Max Gunslinging Chain 1 | . 1 . . . . . . . . . . . . . . Shots Hit Robots 1029 | 34 60 17 . 3 41 109 95 86 18 1 19 101 18 367 60 Core Hits 550 | 16 25 7 . 2 43 85 39 26 8 2 7 64 13 181 32 Critical Kills 3 | . . 1 . . . . . . . . . . . 2 . Critical Parts Destroyed 3 | . . . . 1 . . . . . . . . . 1 1 Critical Strikes 44 | . . 1 . 1 . 2 4 1 1 . . 5 . 25 4 Burn 11 | . . . . . . 1 2 . . . . . . 8 . Meltdown 1 | . . . . . . . . . . . . . . 1 . Destroy 5 | . . 1 . 1 . . . . . . . . . 2 1 Blast 27 | . . . . . . 1 2 1 1 . . 5 . 14 3 Melee Attacks . | . . . . . . . . . . . . . . . . Impact . | . . . . . . . . . . . . . . . . Slashing . | . . . . . . . . . . . . . . . . Piercing . | . . . . . . . . . . . . . . . . Sneak Attacks . | . . . . . . . . . . . . . . . . Combat Hostiles . | . . . . . . . . . . . . . . . . Follow-up Attacks . | . . . . . . . . . . . . . . . . Damage Inflicted 35317 | 371 716 262 . 91 2576 6317 2610 2394 363 85 568 2777 524 13346 2317 Guns 17443 | 371 683 191 . 26 2473 5318 1600 1212 120 24 96 . . 4258 1071 Cannons 15136 | . . 55 . 65 . 322 699 1174 196 . 404 2758 524 7802 1137 Explosions 2402 | . . . . . 55 623 284 . . . 68 . . 1263 109 Melee . | . . . . . . . . . . . . . . . . Ramming 336 | . 33 16 . . 48 54 27 8 47 61 . 19 . 23 . Kinetic 20713 | 123 314 246 . 91 2473 5388 1824 1480 119 . 237 2071 368 4579 1400 Thermal 11620 | 248 369 . . . . 875 653 584 197 24 294 687 156 6908 625 Explosive 1427 | . . . . . 55 . . . . . . . . 1263 109 Electromagnetic 1221 | . . . . . . . 106 322 . . 37 . . 573 183 Impact . | . . . . . . . . . . . . . . . . Slashing . | . . . . . . . . . . . . . . . . Piercing . | . . . . . . . . . . . . . . . . Highest Corruption 31 | . 2 2 2 2 . 5 1 2 2 2 . . . 16 31 Average Corruption 3 | . 2 2 2 2 . 2 1 1 2 2 . . . 4 20 Corruption Purged . | . . . . . . . . . . . . . . . . Corruption Blocked . | . . . . . . . . . . . . . . . . Effects 171 | . 7 11 2 6 . 19 5 2 9 19 . . . 69 22 Message Errors 39 | . 1 1 1 3 . 7 2 2 4 5 . . . 10 3 Matter Fused 39 | . 3 3 1 1 . 5 1 . . 4 . . . 16 5 Heat Flow Errors 20 | . . 1 . . . 2 1 . 3 1 . . . 9 3 Energy Discharges 20 | . 1 1 . . . 1 1 . . 3 . . . 9 4 Parts Rejected 1 | . . . . . . . . . . . . . . 1 . Parts Fused 3 | . . . . . . . . . . 1 . . . 2 . Data Loss (minor) 23 | . 1 3 . 2 . 3 . . 2 4 . . . 6 2 Data Loss (major) 6 | . . . . . . 1 . . . 1 . . . 4 . Misfires 3 | . . 2 . . . . . . . . . . . 1 . Alerts 3 | . . . . . . . . . . . . . . 3 . Weapon Failures 14 | . 1 . . . . . . . . . . . . 8 5 Overload Shots . | . . . . . . . . . . . . . . . . Overflow Damage 576 | . . . . 8 . 129 10 25 39 8 58 21 23 254 1 Projectiles 274 | . . . . 8 . 16 7 25 . . 28 21 23 145 1 Explosions 255 | . . . . . . 113 3 . . . 30 . . 109 . Melee 47 | . . . . . . . . . 39 8 . . . . . Knockbacks 94 | . . . . 1 . 2 3 5 . . 4 16 8 46 9 Impact 1 | . . . . . . . . . . . . . . 1 . Kinetic 85 | . . . . 1 . 2 2 5 . . 4 15 8 40 8 Secondary 8 | . . . . . . . 1 . . . . 1 . 5 1 Self-Inflicted Damage 189 | . . . . . . . . . . . 71 . . 80 38 Shots 3 | . . . . . . . . . . . 1 . . 1 1 Rammed 50 | . 9 5 . . 10 4 5 1 3 9 . 1 . 2 1 Targets Rammed 57 | . 11 5 . . 10 8 5 1 3 9 . 1 . 3 1 Kicked . | . . . . . . . . . . . . . . . . Crushed 7 | . 2 . . . . 4 . . . . . . . 1 . Highest Temperature 400 | 60 40 267 . 15 146 240 400 360 387 236 108 69 19 203 299 Average Temperature 65 | 23 18 67 . 9 35 57 84 123 132 97 51 19 10 45 64 Received Heat Transfer 2011 | . 90 114 . 54 90 90 165 84 . . 6 381 70 544 323 Effects 7 | . . . . . . . 3 3 1 . . . . . . Energy Bleed 2 | . . . . . . . 1 1 . . . . . . . Interference 4 | . . . . . . . 1 2 1 . . . . . . Matter Decay 1 | . . . . . . . 1 . . . . . . . . Siege Activations 26 | . . . . . . . . . . . . 5 1 20 . Total Turns 549 | . . . . . . . . . . . . 116 18 415 . Longest Duration 60 | . . . . . . . . . . . . 39 18 60 . Martial Activations . | . . . . . . . . . . . . . . . . Shielding Activations . | . . . . . . . . . . . . . . . . Robots Disrupted . | . . . . . . . . . . . . . . . . Combat Hostiles . | . . . . . . . . . . . . . . . . Robots Corrupted 6 | . . . . . . . . . 2 3 . . . . 1 Combat Hostiles 1 | . . . . . . . . . . . . . . . 1 Parts Fried 6 | . . . . . . . . . . 1 . . . 4 1 Impact Corruptions 9 | . . . . . . . . . 4 5 . . . . . Robots Melted 3 | . . . . . . . . . . . . . . 3 . Combat Hostiles 3 | . . . . . . . . . . . . . . 3 . Parts Melted 36 | . 2 . . . . 1 1 2 . . . . 1 28 1 Heat Transferred 17283 | 550 825 . . . . 980 1051 851 335 37 498 1350 300 9562 944 Parts Sabotaged . | . . . . . . . . . . . . . . . . Parts Stolen . | . . . . . . . . . . . . . . . . Parts Stripped . | . . . . . . . . . . . . . . . . Power Chain Reactions 1 | . . . . . . . 1 . . . . . . . . Alert | -11 -10 -10 -10 -9 -8 -7 -6 -5 -5 -5 -4 -4 -4 -3 -3 ------- Run | Yrd Mat Min Exi Min Mat Fac Fac Fac Upp Upp Fac Upp Upp Res Tes Maximum Alert Level 5 | . . . . . 2 3 2 . . . . . . 4 5 Low Security (%) 57 | 100 100 100 . 100 51 42 . 100 . . 100 . . 46 . Level 1 20 | . . . . . 26 10 99 . . . . . . 12 . Level 2 8 | . . . . . 21 25 . . . . . . . 12 . Level 3 6 | . . . . . . 21 . . . . . . . 13 . Level 4 3 | . . . . . . . . . . . . . . 14 . Level 5 . | . . . . . . . . . . . . . . . . High Security . | . . . . . . . . . . . . . . . . Max Security 2 | . . . . . . . . . . . . . . . 99 Peak Influence 1679 | 15 55 88 . 35 451 815 406 182 . . 182 . . 1369 1679 Initial 769 | . . . . . . 172 396 172 . . . . . 38 769 Average 287 | 2 18 18 . 5 202 373 318 83 . . 79 . . 435 1596 Influence Increases 6534 | 45 303 269 . 143 685 1209 547 295 50 5 341 310 101 2002 229 Destroy 0b10 Robot/C 4020 | . 200 180 . 80 420 680 360 160 40 . 140 280 80 1240 160 Destroy 0b10 Robot/NC 360 | 45 25 . . . 25 90 10 15 . 5 10 . . 135 . Destroy Leader 882 | . 64 40 . 20 96 172 100 62 10 . 20 30 10 248 10 Allied During Kill 39 | . . 16 . 12 . . . . . . . . 11 . . Successful Hack 102 | . 12 . . . 10 . 30 12 . . . . . 38 . Disable Machine 390 | . . 15 . 15 15 210 15 15 . . 45 . . 60 . Destroy Structure 471 | . 2 3 . 1 59 57 17 16 . . 96 . . 176 44 Lose Combat Pursuer 270 | . . 15 . 15 60 . 15 15 . . 30 . . 105 15 Influence Decreases 5706 | 45 303 221 48 143 304 779 1006 507 190 5 192 453 50 691 769 Entered New Map 1580 | . . . 48 . . 209 415 180 52 . . 56 2 19 599 Time Decay 3568 | 45 303 201 . 79 304 550 571 317 138 5 182 367 34 472 . Lost Part 450 | . . . . . . 20 20 10 . . 10 20 . 200 170 Lost Ally 108 | . . 20 . 64 . . . . . . . 10 14 . . Squads Dispatched 66 | . 4 . . . 2 16 3 3 . . 3 . . 15 20 Investigation 4 | . 2 . . . . . . . . . . . . 2 . Extermination 16 | . . . . . . 3 3 2 . . 1 . . 7 . Reinforcement 15 | . 2 . . . 2 7 . 1 . . 2 . . 1 . Assault 26 | . . . . . . 1 . . . . . . . 5 20 Garrison 5 | . . . . . . 5 . . . . . . . . . Intercept . | . . . . . . . . . . . . . . . . Searches Triggered . | . . . . . . . . . . . . . . . . Construction Impeded 3 | . . . . . 1 1 . . . . . . . 1 . Haulers Reinforced . | . . . . . . . . . . . . . . . . Active Scanning Responses . | . . . . . . . . . . . . . . . . Cargo Convoy Interrupts 1 | . . . . . . 1 . . . . . . . . . Stealth | -11 -10 -10 -10 -9 -8 -7 -6 -5 -5 -5 -4 -4 -4 -3 -3 --------- Run | Yrd Mat Min Exi Min Mat Fac Fac Fac Upp Upp Fac Upp Upp Res Tes Distress Signals 13 | . 3 . . . 4 1 1 2 . . . . . 2 . Communications Jammed . | . . . . . . . . . . . . . . . . Distress Signals . | . . . . . . . . . . . . . . . . Times Spotted 326 | . 22 7 . 4 31 46 18 12 2 . 8 20 4 82 70 Peak Tracking Total 46 | . 5 4 . 2 5 9 3 6 2 . 3 8 4 6 46 Tactical Retreats 13 | . . 1 . 1 2 . 1 1 . . 1 . . 5 1 Traps | -11 -10 -10 -10 -9 -8 -7 -6 -5 -5 -5 -4 -4 -4 -3 -3 ------- Run | Yrd Mat Min Exi Min Mat Fac Fac Fac Upp Upp Fac Upp Upp Res Tes Traps Triggered 6 | . 1 . . . . 1 . 1 . . . . . 3 . Indirectly . | . . . . . . . . . . . . . . . . Trap Hack Attempts . | . . . . . . . . . . . . . . . . Triggered . | . . . . . . . . . . . . . . . . Disarmed . | . . . . . . . . . . . . . . . . Reprogrammed . | . . . . . . . . . . . . . . . . Reused . | . . . . . . . . . . . . . . . . Traps Extracted . | . . . . . . . . . . . . . . . . Installed . | . . . . . . . . . . . . . . . . Triggered . | . . . . . . . . . . . . . . . . Machines | -11 -10 -10 -10 -9 -8 -7 -6 -5 -5 -5 -4 -4 -4 -3 -3 ---------- Run | Yrd Mat Min Exi Min Mat Fac Fac Fac Upp Upp Fac Upp Upp Res Tes Machines Disabled 27 | . . 1 . 1 1 14 1 1 . . 3 . . 4 1 Max in Single Turn 8 | . . . . . 1 8 1 1 . . 2 . . 1 1 Machines Repaired . | . . . . . . . . . . . . . . . . Machines Dismantled . | . . . . . . . . . . . . . . . . Machines Sabotaged . | . . . . . . . . . . . . . . . . Overloaded Fab Kills . | . . . . . . . . . . . . . . . . Hacking | -11 -10 -10 -10 -9 -8 -7 -6 -5 -5 -5 -4 -4 -4 -3 -3 --------- Run | Yrd Mat Min Exi Min Mat Fac Fac Fac Upp Upp Fac Upp Upp Res Tes Machines Accessed 21 | . 5 . 1 . 1 1 3 2 2 . 1 1 . 4 . Terminals 12 | . 4 . . . 1 1 2 1 . . . . . 3 . Fabricators . | . . . . . . . . . . . . . . . . Repair Stations 4 | . 1 . . . . . 1 1 . . . . . 1 . Recycling Units . | . . . . . . . . . . . . . . . . Scanalyzers . | . . . . . . . . . . . . . . . . Garrison Access 1 | . . . . . . . . . . . 1 . . . . Total Hacks 49 | . 15 . 1 . 2 1 11 4 2 . 2 1 . 10 . Successful 26 | . 9 . 1 . 2 . 8 1 2 . . 1 . 2 . Failed 23 | . 6 . . . . 1 3 3 . . 2 . . 8 . Catastrophic 1 | . . . . . . . . 1 . . . . . . . Database Lockouts . | . . . . . . . . . . . . . . . . Manual 12 | . 8 . 1 . 1 1 1 . . . . . . . . Terminals 26 | . 11 . . . 2 1 4 1 . . . . . 7 . Fabricators . | . . . . . . . . . . . . . . . . Repair Stations 17 | . 4 . . . . . 7 3 . . . . . 3 . Recycling Units . | . . . . . . . . . . . . . . . . Scanalyzers . | . . . . . . . . . . . . . . . . Garrison Access 2 | . . . . . . . . . . . 2 . . . . Terminal Hacks 11 | . 3 . 1 . 1 . 2 . 2 . . 1 . 1 . Prototype ID Bank 2 | . . . . . 1 . 1 . . . . . . . . Open Door 3 | . . . . . . . . . 2 . . 1 . . . Locate Traps 2 | . 2 . . . . . . . . . . . . . . Registered Components 1 | . . . . . . . 1 . . . . . . . . Zone Layout 2 | . 1 . . . . . . . . . . . . 1 . Proto ID Catalog 1 | . . . 1 . . . . . . . . . . . . Fabricator Hacks . | . . . . . . . . . . . . . . . . Repair Station Hacks 12 | . 4 . . . . . 6 1 . . . . . 1 . Scan Component 7 | . 2 . . . . . 3 1 . . . . . 1 . Repair 5 | . 2 . . . . . 3 . . . . . . . . Recycling Unit Hacks . | . . . . . . . . . . . . . . . . Scanalyzer . | . . . . . . . . . . . . . . . . Garrison Access Hacks . | . . . . . . . . . . . . . . . . Unauthorized Hacks 3 | . 2 . . . 1 . . . . . . . . . . Terminals 3 | . 2 . . . 1 . . . . . . . . . . Botnet 3 | . 2 . . . 1 . . . . . . . . . . Fabricators . | . . . . . . . . . . . . . . . . Repair Stations . | . . . . . . . . . . . . . . . . Recycling Units . | . . . . . . . . . . . . . . . . Scanalyzers . | . . . . . . . . . . . . . . . . Garrison Access . | . . . . . . . . . . . . . . . . Data Cores Recovered 2 | . . . . . . 1 . . . . . . . 1 . Used . | . . . . . . . . . . . . . . . . Hacking Detections 15 | . 5 . . . . . 3 2 . . 1 . . 4 . Full Trace Events 2 | . 2 . . . . . . . . . . . . . . Feedback Events . | . . . . . . . . . . . . . . . . Feedback Blocked . | . . . . . . . . . . . . . . . . Robot Schematics Acquired . | . . . . . . . . . . . . . . . . Robots Built . | . . . . . . . . . . . . . . . . Authchips . | . . . . . . . . . . . . . . . . Time . | . . . . . . . . . . . . . . . . Total Robot Build Rating . | . . . . . . . . . . . . . . . . Part Schematics Acquired . | . . . . . . . . . . . . . . . . Parts Built . | . . . . . . . . . . . . . . . . Authchips . | . . . . . . . . . . . . . . . . Time . | . . . . . . . . . . . . . . . . Total Part Build Rating . | . . . . . . . . . . . . . . . . Parts Repaired 5 | . 2 . . . . . 3 . . . . . . . . Time 202 | . 52 . . . . . 150 . . . . . . . . Parts Recycled . | . . . . . . . . . . . . . . . . Recycled Matter . | . . . . . . . . . . . . . . . . Retrieved Matter . | . . . . . . . . . . . . . . . . Retrieved Components . | . . . . . . . . . . . . . . . . Parts Scanalyzed . | . . . . . . . . . . . . . . . . Part Schematics Acquired . | . . . . . . . . . . . . . . . . Parts Damaged . | . . . . . . . . . . . . . . . . Bothacking | -11 -10 -10 -10 -9 -8 -7 -6 -5 -5 -5 -4 -4 -4 -3 -3 ------------ Run | Yrd Mat Min Exi Min Mat Fac Fac Fac Upp Upp Fac Upp Upp Res Tes Used RIF Installer . | . . . . . . . . . . . . . . . . Robots Hacked . | . . . . . . . . . . . . . . . . Non-combat . | . . . . . . . . . . . . . . . . Combat . | . . . . . . . . . . . . . . . . Robot Hacks Applied . | . . . . . . . . . . . . . . . . Relay Couplers Released . | . . . . . . . . . . . . . . . . Fabnet Peak Effective % . | . . . . . . . . . . . . . . . . Robots Rewired 2 | . . . . . . . . . . . . 2 . . . Allies Hacked . | . . . . . . . . . . . . . . . . Hacks Repelled . | . . . . . . . . . . . . . . . . Allies | -11 -10 -10 -10 -9 -8 -7 -6 -5 -5 -5 -4 -4 -4 -3 -3 -------- Run | Yrd Mat Min Exi Min Mat Fac Fac Fac Upp Upp Fac Upp Upp Res Tes Total Allies 8 | . . 4 . 2 . . . . . . . 2 . . . Largest Group 4 | . . 3 2 4 . . . . . . . 2 2 1 . Highest-Rated Group 92 | . . 40 29 72 . . . . . . . 92 92 46 . Highest-Rated Ally 46 | . . 31 16 31 . . . . . . . 46 46 46 . Total Orders 3 | . . . . . . . . . . . . 3 . . . EXPLORE 2 | . . . . . . . . . . . . 2 . . . RETURN 1 | . . . . . . . . . . . . 1 . . . Ally Attacks 64 | . . 27 . 31 . . . . . . . . 6 . . Total Damage 878 | . . 328 . 339 . . . . . . . . 211 . . Kills 9 | . . 6 . 3 . . . . . . . . . . . Allies Corrupted . | . . . . . . . . . . . . . . . . Allies Melted . | . . . . . . . . . . . . . . . . Intel | -11 -10 -10 -10 -9 -8 -7 -6 -5 -5 -5 -4 -4 -4 -3 -3 ------- Run | Yrd Mat Min Exi Min Mat Fac Fac Fac Upp Upp Fac Upp Upp Res Tes Active Infowar (turns) 2042 | 182 1061 260 . . . . . 4 . . . . . 535 . Structural 4 | . . . . . . . . 4 . . . . . . . Traps 535 | . . . . . . . . . . . . . . 535 . Seismic 1503 | 182 1061 260 . . . . . . . . . . . . . Robot Analysis Total . | . . . . . . . . . . . . . . . . Derelict Logs Recovered 7 | . . 2 . 1 . . . . . 1 . 3 . . . Drone Launches 3 | . . . . . . . . . . . . 3 . . . Drone Recoveries 1 | . . . . . . . . . . . . 1 . . . Exploration | -11 -10 -10 -10 -9 -8 -7 -6 -5 -5 -5 -4 -4 -4 -3 -3 ------------- Run | Yrd Mat Min Exi Min Mat Fac Fac Fac Upp Upp Fac Upp Upp Res Tes Turns Passed 17286 | 267 1061 1022 363 557 1202 1594 1726 1034 1076 1339 466 1502 143 3564 370 Spaces Moved 8444 | 108 498 569 225 308 605 834 723 518 629 805 222 781 67 1425 127 Core 11 | 4 . . . . . . . . . . . . . . 7 Treads 8401 | 104 498 569 225 308 605 834 723 518 629 805 222 781 67 1425 88 Legs . | . . . . . . . . . . . . . . . . Wheels . | . . . . . . . . . . . . . . . . Hover . | . . . . . . . . . . . . . . . . Flight 32 | . . . . . . . . . . . . . . . 32 Fastest Speed 42 | 50 160 160 160 160 160 160 162 162 164 164 160 160 160 150 42 Average Speed 162 | 155 160 160 160 160 160 160 165 162 164 164 162 160 160 167 156 Slowest Speed 400 | 160 160 160 160 160 160 162 242 164 164 164 164 160 160 240 400 Overloaded Moves . | . . . . . . . . . . . . . . . . Propulsion Burnouts . | . . . . . . . . . . . . . . . . Robots Hopped 2 | . . . . . . . . . . . . . . . 2 Potential Cave-ins . | . . . . . . . . . . . . . . . . Cave-ins Triggered 1 | . . . . . . . . . . . . . . 1 . Exploration Rate (%) 44 | 5 83 96 43 83 49 26 19 14 74 69 7 86 12 27 15 Regions Visited 15 Branch Regions 8 Pre-discovered Areas 4 | . . 1 . 1 . . . . . . . 2 . . . Known Exits Taken . | . . . . . . . . . . . . . . . . Unknown Exits Taken 15 | 1 1 1 1 1 1 1 1 1 1 1 1 1 1 1 . Scrap Searched 7 | . . . . 2 . . . . 2 . . 3 . . . Spaces Dug 65 | . . . . . . 2 5 . . . 36 . . 22 . Terrain Destroyed 410 | . . 3 . 1 63 82 19 8 7 1 62 24 2 101 37 Melee . | . . . . . . . . . . . . . . . . Projectile 207 | . . 3 . 1 39 14 16 8 7 1 21 24 2 59 12 AOE 203 | . . . . . 24 68 3 . . . 41 . . 42 25 Terrain Rammed . | . . . . . . . . . . . . . . . . Walls Destroyed . | . . . . . . . . . . . . . . . . Machines Disabled . | . . . . . . . . . . . . . . . . Actions | -11 -10 -10 -10 -9 -8 -7 -6 -5 -5 -5 -4 -4 -4 -3 -3 --------- Run | Yrd Mat Min Exi Min Mat Fac Fac Fac Upp Upp Fac Upp Upp Res Tes Total 10990 | 154 671 653 230 366 840 1053 1161 642 655 816 281 940 90 2231 207 Wait 1500 | 9 87 53 . 56 149 51 339 64 9 . 8 84 14 562 15 Move 8425 | 107 497 568 224 307 604 833 722 517 628 804 221 780 66 1424 123 Hop 2 | . . . . . . . . . . . . . . . 2 Pick Up 105 | 2 7 2 1 . 11 30 13 5 3 . 5 4 1 18 3 Fast Attach 51 | 7 1 1 . . 1 2 3 1 . . 3 2 . 21 9 Attach 46 | . . . . . 2 8 4 4 . . 3 1 . 13 11 Detach 8 | . . . . . 1 1 1 . . . 1 1 . 2 1 Swap 103 | 2 12 6 1 . 9 7 14 13 . . 7 6 1 22 3 Drop 124 | . 10 5 4 . 11 22 13 5 3 . 13 3 2 29 4 Fire 547 | 27 46 13 . 3 42 91 47 32 9 1 20 38 6 137 35 Melee . | . . . . . . . . . . . . . . . . Ram 1 | . . . . . . . . . . . . . . . 1 Kick . | . . . . . . . . . . . . . . . . Crush 56 | . 11 5 . . 10 8 5 1 3 9 . 1 . 3 . Escape Stasis . | . . . . . . . . . . . . . . . . Rewire 22 | . . . . . . . . . . 2 . 20 . . . Trap . | . . . . . . . . . . . . . . . . Miscellaneous . | . . . . . . . . . . . . . . . . Route ------- -11/Scrapyard -10/Materials (discovered 4 exits: [*Mat x2] / [*Min x2]) -10/Mines (discovered 4 exits: [*Mat x2] / *Exi / [*Sub]) -10/Exiles -9/Mines -8/Materials -7/Factory -6/Factory (discovered 2 exits: *Fac x2) -5/Factory -5/Upper Caves -5/Upper Caves -4/Factory -4/Upper Caves -4/Upper Caves -3/Research -3/Testing History --------- Turn | Location | Event 26 | -11/Scrapyard | Discovered new exit (range 15) 268 | -11/Scrapyard | Entered Materials 307 | -10/Materials | Build established: Mutant 516 | -10/Materials | Discovered new exit (range 12) 703 | -10/Materials | Discovered new exit (range 16) 982 | -10/Materials | Discovered new exit (range 7) 1080 | -10/Materials | Repaired Lgt. Treads 1107 | -10/Materials | Repaired Lgt. Treads 1265 | -10/Materials | Discovered new exit (range 10) 1329 | -10/Materials | Entered Mines 1603 | -10/Mines | Learned Materials terminal intel 1613 | -10/Mines | Discovered new exit (range 10) 1616 | -10/Mines | A weapon hastily lodged in a ceiling crevice suddenly fell to the ground 1663 | -10/Mines | Received a Mining Laser from a helpful Derelict 1725 | -10/Mines | Core integrity fell below 50% 1879 | -10/Mines | Assisted by bots powering up and referring to "LRC-V3" 1939 | -10/Mines | Discovered new exit (range 7) 2225 | -10/Mines | Discovered new exit (range 3) 2298 | -10/Mines | Deemed a non-threat by the Exiles lab entrance 2298 | -10/Mines | Discovered new exit (range 5) 2312 | -10/Mines | Learned location of Mines (-9) 2351 | -10/Mines | Entered Exiles 2351 | -10/Exiles | Accompanied by 2 allies 2390 | -10/Exiles | Met 8R-AWN 2417 | -10/Exiles | Met EX-HEX 2473 | -10/Exiles | Met EX-BIN 2495 | -10/Exiles | Aligned with FarCom system 2497 | -10/Exiles | Given EX-Vault access code 2534 | -10/Exiles | Opened EX-Vault 2550 | -10/Exiles | Found XL Autogun Array 2585 | -10/Exiles | Warned to stay clear of 0b10 Research branches 2697 | -10/Exiles | Discovered new exit (range 14) 2714 | -10/Exiles | Left Exiles lab with XL Autogun Array 2714 | -10/Exiles | Entered Mines 2714 | -9/Mines | Accompanied by 2 allies 2742 | -9/Mines | Learned location of Storage (-9) 2775 | -9/Mines | Met a Derelict bent on vengeance 2830 | -9/Mines | Found a damaged Exp. Sensor Array with a note attached 3160 | -9/Mines | Lost 3 allies 3264 | -9/Mines | Discovered new exit (range 4) 3271 | -9/Mines | Entered Materials 3271 | -8/Materials | Evolved 4 slots: Propulsion x1, Utility x1, Weapon x2 3272 | -8/Materials | Loaded intel: 12 terminal locations 3569 | -8/Materials | Build established: Skirmisher 4124 | -8/Materials | Build established: Scavenger-Skirmisher 4449 | -8/Materials | Discovered new exit (range 16) 4473 | -8/Materials | Entered Factory 4473 | -7/Factory | Evolved 2 slots: Propulsion x1, Utility x1 4801 | -7/Factory | Build established: Gunner 5075 | -7/Factory | Cargo convoy interrupted 5115 | -7/Factory | Destroyed 9 combat bots 5321 | -7/Factory | Garrison activated, responded to threat 5389 | -7/Factory | Found PL-3XN's Ring of Power 5673 | -7/Factory | First assault squad dispatched 5880 | -7/Factory | Garrison activated, responded to threat 6030 | -7/Factory | Build established: Skirmisher 6033 | -7/Factory | Discovered new exit (range 7) 6044 | -7/Factory | Garrison activated, responded to threat 6067 | -7/Factory | Entered another Factory area 6067 | -6/Factory | Evolved 2 slots: Power x1, Utility x1 6354 | -6/Factory | Build established: Tank 6519 | -6/Factory | Discovered new exit (range 7) 7462 | -6/Factory | Repaired Imp. Treads 7501 | -6/Factory | Repaired Arm. Treads 7583 | -6/Factory | Repaired F-cell Engine 7783 | -6/Factory | Discovered new exit (range 8) 7793 | -6/Factory | Entered another Factory area 7793 | -5/Factory | Evolved 2 slots: Propulsion x1, Utility x1 8100 | -5/Factory | Build established: Gunner 8795 | -5/Factory | Discovered new exit (range 7) 8827 | -5/Factory | Entered Upper Caves 8943 | -5/Upper Caves | Build established: Scavenger-Gunner 9455 | -5/Upper Caves | Spotted B-75 Beast 9726 | -5/Upper Caves | Discovered new exit (range 8) 9903 | -5/Upper Caves | Entered another Upper Caves area 9995 | -5/Upper Caves | Learned Factory stockpile data 11003 | -5/Upper Caves | Discovered new exit (range 13) 11242 | -5/Upper Caves | Entered Factory 11242 | -4/Factory | Evolved 2 slots: Propulsion x1, Utility x1 11682 | -4/Factory | Discovered new exit (range 15) 11708 | -4/Factory | Entered Upper Caves 11960 | -4/Upper Caves | Build established: Tank 12123 | -4/Upper Caves | Attracted the attention of an 0b10 checkpoint 12570 | -4/Upper Caves | Destroyed 9 combat bots 12810 | -4/Upper Caves | Attacked by a faux Warlord 13053 | -4/Upper Caves | Learned Research emergency access door positions 13126 | -4/Upper Caves | Discovered new exit (range 15) 13190 | -4/Upper Caves | Learned location of Quarantine (-2) 13206 | -4/Upper Caves | Build established: Scavenger-Tank 13210 | -4/Upper Caves | Entered another Upper Caves area 13210 | -4/Upper Caves | Accompanied by 2 allies 13294 | -4/Upper Caves | Discovered new exit (range 6) 13353 | -4/Upper Caves | Entered Research 13353 | -3/Research | Accompanied by 1 ally 13353 | -3/Research | Evolved 2 slots: Utility x1, Weapon x1 13696 | -3/Research | Discovered new exit (range 18) 13838 | -3/Research | Build established: Tank 14877 | -3/Research | Destroyed 8 combat bots 15606 | -3/Research | Build established: Gunner 15853 | -3/Research | First assault squad dispatched 15942 | -3/Research | Lost 3 parts (2u1w) 16069 | -3/Research | Destroyed 9 combat bots 16211 | -3/Research | Build established: Tank 16364 | -3/Research | System corruption reached 10% 16409 | -3/Research | Lost 4 parts (1p2u1w) 16484 | -3/Research | Crushed by falling debris 16707 | -3/Research | Build established: Scavenger-Tank 16917 | -3/Research | Entered Testing 16918 | -3/Testing | Maximum security lockdown engaged 17010 | -3/Testing | Spotted PD-3GCG0MCRU5 17049 | -3/Testing | Spotted Striker 17051 | -3/Testing | Spotted Striker 17068 | -3/Testing | Destroyed Striker 17069 | -3/Testing | Spotted Alpha 7 17081 | -3/Testing | Destroyed Striker 17148 | -3/Testing | Destroyed Alpha 7 17173 | -3/Testing | Lost 11 parts (2p4n1u4w) 17249 | -3/Testing | Lost 4 parts (2u2w) 17257 | -3/Testing | Stole the SGEMP Prototype 17265 | -3/Testing | Spotted Striker 17273 | -3/Testing | Core integrity fell below 50% 17276 | -3/Testing | Released all parts (15) 17284 | -3/Testing | System corruption reached 30% 17285 | -3/Testing | Spotted Investigator 17285 | -3/Testing | Spotted Executioner 17285 | -3/Testing | Spotted Executioner 17285 | -3/Testing | Spotted Executioner 17286 | -3/Testing | Core integrity fell below 20% 17287 | -3/Testing | Destroyed by G-67 Veteran with Field Laser Last Messages --------------- 17284_ L-61 Swordsman unfolds itself. 17284_ G-67 Veteran unfolds itself. 17285_ Investigator: "PRIMARY THREAT IDENTIFIED. CONTAINMENT PROTOCOL APPLICABLE." 17285_ Impulse Thruster Array destroyed. 17285_ Critical hit (Burn: +37). 17285_ C-30 ARC bursts open, deploying its payload. 17285_ G-73 Enforcer unfolds itself. 17285_ L-61 Swordsman unfolds itself. 17285_ G-67 Veteran unfolds itself. 17285_ I-47 Archangel unfolds itself. 17285_ M-36 Artificer fits Backup Propulsion VII on M-36 Artificer. 17286_ Slug penetrates I-47 Archangel. 17286_ Slammed into L-61 Swordsman. 17286_ Destabilizing: Core damaged (-52). 17286_ Slug penetrates G-67 Veteran. 17286_ Slug penetrates Earth. 17287_ Critical hit (Burn: +50). Map ----- +----------------------------------------------------+ | ??????????????# #????????????????????????? | | ?????#######??# #????????????????????????? | | ?????? ?# #????????????????????????? | | ?????? """ ?# #????????????????????????? | | ?????? """ # #????????????????????????? | | ?????# """ / # ###+#######??????????????? | | ?????# + ???????????? | | ?????# "" "" # ???????????? | | ???????""R"" # ##########???????????????? | | ????????"""" ?# #????????????????????????? | | ???????? ?# #????????????????????????? | | ???????#####??# #????????????????????????? | | ??????????????# =#????????????????????????? | | ??????????????#li#????????????????????????? | | ??????????????#gg#????????????????????????? | | ??????????????#%g#????????????????????????? | | ??????????????#lgg????????????????????????? | | ?????????????##gg#????????????????????????? | | ?????????????#cg=#????????????????????????? | | ??????????????mgg#????????????????????????? | | ?????????????##mg#????????????????????????? | | ?????????????#%pb##???????????????????????? | | ??????????????#pg%##??????????????????????? | | ??????????????#EEEi###????????????????????? | | ??????????????#ggg ?????????????????????? | | ???????????####igg@#??????????????????????? | | ??????????## hil##??????????????????????? | | ??????????# mgpll##?????????????????????? | | ??????????# ggphg #?????????????????????? | | ??????????# p Kep #?????????????????????? | | ??????????## #!g ##?????????????????????? | | ??????????#####!/####?????????????????????? | | ??????????#""**&%=/!#?????????????????????? | | ??????????#"""&[[!%=#?????????????????????? | | ??????????#""]![]]!##?????????????????????? | | ??????????#" [!![! #??????????????????????? | | ??????????#""""]!]"#??????????????????????? | | ??????????#"""" ""#??????????????????????? | | ??????????##########??????????????????????? | | ??????????????????????????????????????????? | | ??????????????????????????????????????????? | | ??????????????????????????????????????????? | | ??????????????????????????????????????????? | | ??????????????????????????????????????????? | | ??????????????????????????????????????????? | | | | | | | | | | | +----------------------------------------------------+ Best States ------------- Heat Dissipation 193 Coolant Potential 100 Energy Generation 39 Energy Capacity 915 Matter Stores 300 Matter Capacity 500 Sight Range 16 Terrain Scan Density 10 Additional Mass Support 16 Base Temperature (-) 200 Armor Coverage 1200 Evasion (%) 50 Targeting Accuracy 8 Core Analysis 6 Recoil Reduction 8 Item Schematics ----------------- None Robot Schematics ------------------ None Fabricated ------------ Nothing Repaired ---------- Lgt. Treads | 44% | -10/Materials Lgt. Treads | 70% | -10/Materials Imp. Treads | 58% | -6/Factory Arm. Treads | 69% | -6/Factory F-cell Engine | 31% | -6/Factory Alien Tech Used ----------------- None Achievements -------------- Turtlemind Challenges ------------ None Game ------ Seed DirectedScatterTrap Manual? 0 Play Time 01:47:35 Cumulative 129.2 hours Start 2025.10.03 @ 15:06:59 End 2025.10.04 @ 18:17:45 Sessions 5 Manual Loads 0 Difficulty Rogue Special Mode None Game No. 242 Rogue 240 Adventurer 0 Explorer 2 Win Type - Total 1 Types 1/0/0/0/0/0/0/0/0/0 Lore% 45 Gallery% 52 Achievement% 44 Wizard Run 0 Options --------- Layout 2 ASCII 0 Keyboard 1 Movement Arrows Keybinds 0 Fullscreen 1 Font 28/SmallcapsGlow Map View 50x49 Zoom Use 0% Tactical HUD 1 Map Filters NONE Filters NONE Steam 1 RUN: 90c5bc5b-b3fc-4a73-8d02-6fee02ab2818